bitfinex/quotes_ETHUSD_20251218
["timestamp","ask_amount","ask_price","bid_price","bid_amount"]
[1766077581521,0.7704,2914.7,2913.0,1.6869]
[1766077581737,0.7704,2914.7,2913.1,1.0688]
[1766077581944,0.582,2914.8,2913.1,1.0688]
[1766077581945,0.582,2914.8,2913.2,7.14087274]
[1766077582222,0.85857445,2914.5,2913.2,0.27557]
[1766077582423,0.7704,2914.0,2913.0,1.6869]
[1766077582608,0.08817445,2914.7,2913.0,1.6869]
[1766077582609,0.582,2913.9,2913.0,1.6869]
[1766077582815,0.7704,2913.7,2913.0,1.6869]
[1766077583015,0.582,2913.8,2913.0,1.6869]
[1766077583218,0.582,2913.8,2912.8,5.11997616]
[1766077583433,1.3524,2914.3,2913.0,1.6869]
[1766077583633,0.7704,2914.2,2913.0,1.6869]
[1766077583941,0.7704,2914.2,2912.8,3.43307963]
[1766077583942,1.7433,2913.7,2912.2,3.4337936]
[1766077584105,0.7704,2913.6,2912.3,1.6869]
[1766077584290,1.7433,2913.7,2912.0,1.071]
[1766077584291,0.582,2913.7,2912.1,3.52203886]
[1766077584491,0.7704,2914.5,2913.0,1.6879]
[1766077584740,13.72401012,2914.6,2913.0,0.001]
[1766077584909,2.5137,2914.2,2912.4,1.6869]
[1766077585108,30.49367845,2914.3,2911.9,0.001]
[1766077585109,1.7433,2913.3,2911.9,0.001]
[1766077585291,1.7433,2912.8,2911.9,0.001]
[1766077585493,1.7433,2912.8,2911.0,0.49656587]
[1766077585494,0.7704,2912.3,2911.0,0.00546587]
[1766077585807,0.582,2912.3,2911.1,1.6869]
[1766077586245,1.23478023,2913.3,2911.5,1.6869]
[1766077586540,1.7433,2912.4,2911.0,0.00546587]
[1766077586699,1.13455468,2913.0,2911.1,1.6869]
[1766077586700,0.582,2912.3,2911.1,1.6869]
[1766077586898,1.3524,2912.3,2911.1,1.6869]
[1766077587542,0.7704,2912.7,2911.0,2.18666587]
[1766077587834,3.43359428,2912.4,2911.2,1.6869]
[1766077588052,0.7704,2912.5,2911.2,5.12190961]
[1766077588208,1.7433,2912.3,2911.0,0.00546587]
[1766077588419,0.7704,2912.1,2911.0,0.00546587]
[1766077588614,0.582,2912.2,2911.0,0.00546587]
[1766077588615,0.7704,2911.9,2911.0,0.00546587]
[1766077588819,0.7704,2911.9,2910.6,0.001]
[1766077588820,0.405504,2911.9,2910.6,0.001]
[1766077589017,1.7433,2911.6,2910.6,0.001]
[1766077589213,0.7704,2911.4,2910.6,0.001]
[1766077589627,0.7704,2911.3,2910.6,0.001]
[1766077589834,1.3524,2911.5,2910.6,0.001]
[1766077590155,1.7433,2911.3,2910.3,2.6119146]
[1766077590355,0.57600004,2911.3,2910.3,2.6119146]
[1766077590506,0.57600004,2911.3,2909.8,1.6869]
[1766077590507,0.7704,2911.2,2909.8,1.6869]
[1766077590709,0.7704,2912.0,2910.5,1.6869]
[1766077590935,0.7704,2912.7,2911.2,0.773]
[1766077591135,0.7704,2912.7,2911.4,1.6869]
[1766077591307,1.06987445,2912.5,2910.7,1.6869]
[1766077591502,0.7704,2912.2,2910.8,1.6869]
[1766077591706,0.7704,2912.2,2910.9,1.6869]
[1766077591937,0.7704,2912.5,2911.1,1.6869]
[1766077592202,0.582,2912.8,2911.3,0.773]
[1766077592564,0.582,2912.8,2910.9,6.87072726]
[1766077592565,0.7704,2912.3,2910.9,0.583]
[1766077592840,0.7704,2911.9,2910.4,1.6869]
[1766077593050,30.405504,2911.6,2909.8,0.001]
[1766077593252,0.7704,2910.4,2908.8,0.773]
[1766077593433,0.08817445,2910.6,2908.6,1.6879]
[1766077593434,0.85857445,2910.1,2908.6,1.6879]
[1766077593636,0.08817445,2909.4,2908.6,0.001]
[1766077593852,0.08817445,2909.4,2906.5,2.76551605]
[1766077593853,4.20824378,2908.8,2907.1,1.6869]
[1766077594054,0.7704,2908.6,2907.1,1.6869]
[1766077594269,4.20788925,2909.1,2907.5,0.773]
[1766077594409,0.583,2908.7,2907.6,1.6869]
[1766077594753,0.583,2908.7,2907.2,1.6869]
[1766077594754,0.7704,2908.6,2907.2,1.6869]
[1766077594910,0.7704,2908.6,2907.3,1.6869]
[1766077595113,0.7704,2908.6,2906.9,6.88012944]
[1766077595114,0.7704,2908.6,2907.2,0.773]
[1766077595315,3.43748925,2909.1,2907.0,1.6869]
[1766077595515,1.02639893,2909.0,2907.5,1.6869]
[1766077595739,1.79679893,2909.0,2907.5,1.6869]
[1766077595924,0.08817445,2909.3,2907.9,0.773]
[1766077595925,0.584,2909.3,2907.9,0.773]
[1766077596246,0.7704,2909.0,2907.7,1.6869]
[1766077596558,0.08817445,2909.2,2907.7,0.773]
[1766077596719,0.08817445,2908.6,2907.0,0.46438023]
[1766077596914,0.08817445,2908.6,2904.8,3.4424806]
[1766077596915,0.08817445,2907.3,2904.8,3.4424806]
[1766077597230,0.584,2907.2,2906.1,3.44100671]
[1766077597425,0.7704,2908.0,2906.5,6.8811285]
[1766077597642,0.585,2908.4,2906.7,1.6869]
[1766077597858,0.585,2908.9,2907.3,1.6869]
[1766077598040,0.7704,2909.4,2907.9,1.6869]
[1766077598352,0.7704,2909.3,2907.3,1.6869]
[1766077598549,0.586,2909.2,2907.7,1.6869]
[1766077598850,0.08817445,2909.7,2907.4,1.20061075]
[1766077598851,10.0,2909.9,2907.8,0.773]
[1766077599024,0.08817445,2909.8,2908.4,1.6869]
[1766077599224,0.85857445,2909.7,2908.4,1.6869]
[1766077599547,0.7704,2909.7,2908.3,0.586]
[1766077599959,0.586,2910.0,2908.7,1.6869]
[1766077600121,0.586,2910.0,2908.8,2.2729]
[1766077600423,0.586,2910.0,2908.8,1.6869]
[1766077600627,0.586,2910.0,2908.5,3.43813339]
[1766077600628,0.7704,2909.9,2908.5,3.43813339]
[1766077600935,0.08817445,2909.5,2908.3,1.6869]
[1766077601136,0.002,2909.6,2908.6,0.773]
[1766077601445,0.002,2909.6,2908.5,1.6869]
[1766077601645,0.7704,2908.6,2906.9,1.6869]
[1766077601818,0.7704,2909.5,2907.0,8.13943542]
[1766077602017,0.08817445,2909.4,2907.5,7.55243542]
[1766077602214,0.7704,2909.1,2907.8,1.6869]
[1766077602418,0.588,2909.0,2907.8,1.6869]
[1766077602618,1.3991,2909.0,2907.8,1.6869]
[1766077602929,0.59,2909.6,2908.2,1.6716]
[1766077603123,0.59,2909.6,2908.2,1.92443]
[1766077603448,0.08817445,2909.3,2908.2,1.6716]
[1766077603834,0.59,2909.6,2908.4,1.6716]
[1766077604220,3.43493381,2911.3,2908.3,6.87686964]
[1766077604221,0.08817445,2910.8,2908.9,1.6716]
[1766077604446,0.08817445,2910.0,2908.8,1.6716]
[1766077604659,0.08817445,2909.6,2908.3,1.6716]
[1766077604954,0.08817445,2908.7,2907.4,3.43941276]
[1766077605160,0.588,2908.6,2907.3,1.6716]
[1766077605523,0.08817445,2908.3,2906.6,1.6716]
[1766077605723,0.89927445,2908.1,2906.6,1.6716]
[1766077605938,4.24982952,2908.1,2906.7,2.5283]
[1766077606129,0.8111,2908.7,2907.2,1.6716]
[1766077606325,0.588,2909.1,2907.7,1.6716]
[1766077606546,0.8111,2909.0,2907.7,1.6716]
[1766077606746,0.8111,2908.8,2907.5,0.588]
[1766077606949,0.588,2909.1,2907.6,1.6716]
[1766077607157,0.588,2909.1,2907.7,1.6716]
[1766077607663,1.12967445,2908.2,2906.6,1.6716]
[1766077607828,0.8111,2906.4,2904.7,0.03442696]
[1766077608027,0.8111,2906.4,2902.3,0.15045384]
[1766077608028,0.19407745,2906.3,2905.1,1.6716]
[1766077608264,1.49027445,2906.6,2905.2,1.6716]
[1766077608428,0.8111,2907.1,2905.5,2.5283]
[1766077608623,0.8111,2907.1,2905.6,1.6716]
[1766077608861,0.08817445,2907.6,2905.6,7.55243542]
[1766077609088,1.8542,2908.5,2906.6,0.8567]
[1766077609236,1.8542,2908.5,2906.5,0.001]
[1766077609237,0.89927445,2907.8,2906.5,1.6726]
[1766077609430,0.8111,2907.8,2906.5,1.6726]
[1766077610027,0.08817445,2907.5,2906.5,0.001]
[1766077610254,0.08817445,2907.2,2906.5,0.001]
[1766077610437,0.08817445,2907.2,2904.8,4.03356488]
[1766077610438,1.13287445,2906.7,2904.8,4.03356488]
[1766077610641,0.591,2906.6,2905.4,1.6716]
[1766077610839,1.94557445,2907.3,2905.5,1.6716]
[1766077611042,0.08817445,2907.9,2906.4,5.11223873]
[1766077611243,0.89927445,2908.6,2906.7,0.8567]
[1766077611443,0.89927445,2908.6,2907.1,1.6716]
[1766077611665,0.8111,2908.1,2906.5,6.88112499]
[1766077611967,0.08817445,2907.8,2906.4,1.6716]
[1766077612195,0.592,2908.4,2906.7,1.6716]
[1766077612466,0.592,2908.4,2906.9,1.6716]
[1766077612633,0.592,2908.4,2906.6,7.56698228]
[1766077612835,1.4031,2909.0,2907.1,0.8567]
[1766077613063,0.08817445,2908.9,2907.4,1.6716]
[1766077613459,0.89927445,2908.7,2907.4,1.6716]
[1766077613764,0.08817445,2908.9,2907.5,1.6716]
[1766077613931,0.08817445,2908.9,2907.5,6.87866044]
[1766077614135,0.08817445,2908.8,2907.6,2.44513604]
[1766077614566,0.08817445,2908.8,2907.9,1.6716]
[1766077615154,0.08817445,2908.8,2908.1,1.6716]
[1766077615351,0.002,2909.3,2908.4,2.5283]
[1766077615573,0.002,2909.3,2908.6,1.6683]
[1766077615877,0.002,2909.3,2908.6,5.10631429]
[1766077616041,0.002,2909.3,2908.6,1.6683]
[1766077616441,0.002,2909.3,2907.4,3.43940997]
[1766077616664,0.002,2909.3,2907.7,0.8567]
[1766077616863,30.8111,2909.9,2908.6,3.43805246]
[1766077617038,0.8111,2909.9,2908.6,4.02905246]
[1766077617371,0.591,2910.3,2908.7,1.4477]
[1766077617559,0.89927445,2910.0,2908.7,0.591]
[1766077617753,0.08817445,2909.9,2908.5,2.2626]
[1766077617947,0.08817445,2909.9,2908.5,1.6716]
[1766077617948,0.8111,2909.8,2908.5,1.6716]
[1766077618247,0.08817445,2909.9,2906.7,0.86233625]
[1766077618248,0.08817445,2909.1,2907.5,0.8567]
[1766077618477,0.89927445,2909.0,2907.6,1.6716]
[1766077618656,0.89927445,2908.8,2907.6,1.6716]
[1766077618856,0.591,2909.2,2907.6,1.6716]
[1766077619056,0.08817445,2908.9,2907.8,1.6716]
[1766077619292,0.08817445,2908.8,2907.8,1.6716]
[1766077619488,0.08817445,2908.8,2907.3,2.5283]
[1766077619689,0.8111,2908.7,2907.3,3.1193]
[1766077619889,0.08817445,2909.6,2908.0,5.11037536]
[1766077620090,0.8111,2909.5,2908.1,2.2626]
[1766077620292,0.8111,2909.5,2907.3,0.25283]
[1766077620293,0.8111,2908.4,2907.3,0.25283]
[1766077620462,0.591,2908.8,2907.6,1.6716]
[1766077620663,0.7729,2909.8,2908.1,1.6901]
[1766077620963,1.45207445,2910.5,2908.8,2.4933]
[1766077621156,3.5231109,2911.3,2909.1,1.6901]
[1766077621157,4.20812395,2911.1,2909.1,1.6901]
[1766077621458,4.20812395,2911.1,2908.9,0.591]
[1766077621459,0.7729,2912.4,2910.6,0.8032]
[1766077621685,0.7729,2913.0,2911.3,1.6901]
[1766077621882,0.7729,2913.0,2911.5,6.86931134]
[1766077622081,0.7729,2912.9,2911.4,4.02573114]
[1766077622283,0.7729,2912.2,2910.7,0.591]
[1766077622459,30.0,2911.5,2910.1,1.6901]
[1766077622662,0.08817445,2910.9,2909.2,1.6901]
[1766077622961,0.592,2911.2,2909.6,0.8032]
[1766077623166,0.592,2911.6,2909.4,7.56698228]
[1766077623363,0.7729,2912.4,2910.2,0.8032]
[1766077623680,0.08817445,2911.3,2909.5,0.8032]
[1766077624009,0.08817445,2911.3,2909.3,1.6901]
[1766077624010,3.43618995,2910.2,2908.4,1.6901]
[1766077624171,3.43618995,2910.2,2908.8,1.6901]
[1766077624172,7.4643799,2910.2,2908.8,1.6901]
[1766077624368,0.08817445,2909.4,2908.0,1.6901]
[1766077624565,0.86107445,2909.2,2907.5,2.2821]
[1766077624801,0.7729,2909.2,2907.5,0.592]
[1766077625002,0.68017445,2909.4,2908.1,1.6901]
[1766077625172,0.08817445,2909.6,2907.7,3.43904177]
[1766077625495,0.08817445,2909.7,2908.4,1.6901]
[1766077625699,0.08817445,2909.2,2907.7,2.2821]
[1766077625905,3.43760742,2909.0,2907.7,2.2821]
[1766077626104,0.40296074,2908.9,2907.7,2.2821]
[1766077626318,0.08817445,2908.7,2907.2,1.6901]
[1766077626529,0.592,2909.3,2907.8,0.8032]
[1766077626687,0.08817445,2909.7,2907.9,0.592]
[1766077626890,0.08817445,2909.7,2908.2,8.1636]
[1766077627087,0.86107445,2909.3,2906.8,3.52833857]
[1766077627288,0.7729,2909.0,2907.5,0.592]
[1766077627499,0.7729,2908.6,2907.7,8.1636]
[1766077627809,0.7729,2908.6,2906.9,7.56698228]
[1766077627810,1.779,2909.0,2907.8,8.1636]
[1766077627971,4.02951234,2909.1,2908.2,8.1636]
[1766077628172,0.592,2909.1,2908.2,8.1636]
[1766077628385,0.7729,2908.9,2907.9,8.1636]
[1766077628602,0.08817445,2909.6,2908.6,8.1636]
[1766077628603,1.779,2909.6,2908.6,8.1636]
[1766077628803,0.002,2908.9,2908.1,8.1636]
[1766077629010,0.002,2908.9,2908.5,8.1636]
[1766077629214,0.7749,2908.9,2907.5,0.591]
[1766077629412,2.5519,2908.3,2907.2,5.4424]
[1766077629579,0.7729,2908.1,2907.2,8.1636]
[1766077629775,0.67917445,2908.0,2906.8,8.1636]
[1766077629982,4.21204434,2907.7,2906.7,0.86233625]
[1766077630301,4.21204434,2907.7,2906.4,0.591]
[1766077630479,1.86717445,2907.0,2905.3,0.7304]
[1766077630680,0.7729,2906.6,2905.6,8.1636]
[1766077630891,0.7729,2906.6,2905.7,8.1636]
[1766077631090,0.7729,2906.6,2905.6,0.81646]
[1766077631091,0.86107445,2907.2,2905.9,8.1636]
[1766077631319,2.5519,2906.7,2905.6,8.98006]
[1766077631521,0.7729,2906.2,2905.3,0.001]
[1766077631706,1.3639,2906.2,2905.3,0.001]
[1766077632083,0.7729,2905.9,2904.4,4.77102476]
[1766077632294,1.3639,2905.9,2904.4,4.77102476]
[1766077632496,0.8944,2906.7,2905.6,0.2939]
[1766077632696,0.08817445,2905.4,2902.9,1.79988115]
[1766077632897,30.0,2905.0,2903.0,7.56698228]
[1766077633226,30.0,2905.0,2902.2,0.08817445]
[1766077633227,0.8944,2902.9,2901.3,0.17968517]
[1766077633432,0.44219609,2900.5,2900.0,3.593]
[1766077633597,0.8944,2901.4,2900.0,6.44827586]
[1766077633802,1.881,2902.4,2900.4,7.56698228]
[1766077634112,0.8944,2902.0,2900.6,3.44756257]
[1766077634288,22.2834,2901.8,2900.0,10.56698228]
[1766077634494,0.68217445,2901.9,2898.9,6.25775061]
[1766077634495,0.8944,2900.6,2899.8,3.44848807]
[1766077634722,0.8944,2900.5,2898.9,3.40219559]
[1766077634889,0.8944,2900.5,2899.0,1.09691779]
[1766077634890,0.8914,2900.5,2899.0,1.09691779]
[1766077635090,0.8914,2900.5,2898.9,3.40219559]
[1766077635320,0.8914,2900.5,2897.4,1.88098338]
[1766077635321,0.08817445,2900.1,2897.4,0.0345137]
[1766077635526,0.08817445,2900.1,2892.7,0.08817445]
[1766077635792,0.00999999,2894.0,2890.2,3.4599679]
[1766077636011,6.90798562,2895.2,2893.8,0.08817445]
[1766077636221,1.72961132,2895.2,2894.5,1.2e-07]
[1766077636423,1.70729801,2894.0,2889.4,3.51091326]
[1766077636591,0.0345,2893.9,2891.2,3.45877144]
[1766077636786,0.6929971,2894.3,2893.0,7.56698228]
[1766077636985,0.08817418,2894.5,2894.2,7.56698228]
[1766077637201,0.08817418,2894.5,2891.2,6.91754288]
[1766077637405,0.08817445,2894.0,2892.7,7.56698228]
[1766077637618,0.08817445,2891.4,2891.2,3.40540235]
[1766077637799,0.08817445,2894.9,2892.4,0.08817445]
[1766077637995,0.17972781,2895.3,2891.8,0.08817445]
[1766077637996,0.17972781,2895.3,2893.5,0.08817445]
[1766077638199,0.17972781,2895.3,2894.2,0.9168]
[1766077638426,0.17972781,2895.3,2893.9,1.7303]
[1766077638427,0.04417418,2894.5,2893.9,1.7303]
[1766077638628,0.04417418,2894.5,2894.2,0.9168]
[1766077638806,0.04417418,2894.5,2894.0,0.08294596]
[1766077638807,0.628,2895.3,2894.4,1.7303]
[1766077639020,30.0,2897.3,2895.3,1.7303]
[1766077639195,0.635,2897.2,2895.9,0.9168]
[1766077639396,0.635,2897.2,2896.0,1.7303]
[1766077639633,0.635,2897.2,2895.9,0.9168]
[1766077639634,0.00224,2897.7,2896.1,1.7303]
[1766077639798,0.00224,2897.7,2895.9,7.56698228]
[1766077639799,0.00224,2897.7,2896.7,1.7303]
[1766077640132,3.44832332,2900.0,2897.6,0.08294596]
[1766077640296,30.0,2900.2,2898.3,2.6471]
[1766077640494,30.0,2900.2,2896.6,0.08294596]
[1766077640495,3.44768143,2900.5,2898.6,0.9168]
[1766077640796,1.788488,2901.0,2899.7,0.08294596]
[1766077640797,33.4473084,2900.9,2899.7,0.08294596]
[1766077640995,30.0,2900.7,2899.3,0.08294596]
[1766077641197,0.8944,2900.6,2899.4,0.08294596]
[1766077641394,0.8944,2900.3,2899.1,0.08294596]
[1766077641601,10.097,2900.0,2899.4,0.08294596]
[1766077641821,10.0,2900.7,2898.5,1.7303]
[1766077641822,30.0,2900.6,2899.1,0.08294596]
[1766077642009,3.44717853,2901.0,2898.9,0.08294596]
[1766077642235,30.8944,2900.5,2899.0,0.08294596]
[1766077642428,0.639,2900.4,2898.3,0.08294596]
[1766077642617,24.772,2900.1,2898.8,0.08294596]
[1766077642816,8.564,2901.0,2899.9,0.08294596]
[1766077642998,3.4459459,2902.0,2899.9,0.08294596]
[1766077642999,3.44542447,2902.4,2900.5,0.08294596]
[1766077643195,2.011,2902.3,2901.2,0.08294596]
[1766077643401,2.011,2902.3,2897.3,0.9168]
[1766077643402,0.08294596,2900.4,2897.3,0.9168]
[1766077643624,0.08294596,2900.6,2897.5,0.46438023]
[1766077643625,2.897,2898.6,2897.5,0.46438023]
[1766077643824,10.08294596,2900.2,2897.5,0.46438023]
[1766077643825,2.897,2899.3,2898.3,7.56698228]
[1766077644105,10.0,2900.8,2898.5,0.9168]
[1766077644300,0.08294596,2900.3,2898.5,0.9168]
[1766077644608,0.641,2900.2,2898.5,0.9168]
[1766077644810,0.72394596,2900.1,2898.5,0.9168]
[1766077645011,0.08294596,2899.5,2898.5,0.9168]
[1766077645331,0.641,2899.4,2897.2,1.7303]
[1766077645533,0.08294596,2899.8,2897.8,1.7303]
[1766077645732,0.641,2899.7,2898.5,0.9168]
[1766077646032,0.08294596,2900.5,2899.2,2.6471]
[1766077646231,1.79875979,2901.4,2899.2,2.6471]
[1766077646232,11.96827972,2901.4,2899.2,2.6471]
[1766077646437,0.08294596,2901.8,2899.8,1.7303]
[1766077646438,0.002,2900.7,2899.8,1.7303]
[1766077646620,0.002,2900.7,2899.9,0.9168]
[1766077646801,0.08294596,2899.6,2898.6,0.95129941]
[1766077647001,1.4822,2897.8,2896.7,0.03452204]
[1766077647201,0.08294596,2899.0,2896.6,7.56698228]
[1766077647202,0.08294596,2900.1,2897.3,0.001]
[1766077647441,0.641,2899.5,2897.3,0.001]
[1766077647599,0.08294596,2899.2,2897.3,0.001]
[1766077648000,0.08294596,2899.7,2897.3,0.001]
[1766077648197,1.96394596,2901.0,2897.4,30.0345137]
[1766077648401,0.08294596,2900.1,2897.8,0.46438023]
[1766077648601,0.641,2900.0,2897.9,0.03450774]
[1766077648902,0.08294596,2900.2,2897.8,1.7303]
[1766077649245,0.08294596,2899.8,2897.6,2.6471]
[1766077649404,0.08294596,2900.0,2897.5,0.405504]
[1766077649599,1.881,2900.4,2897.7,9.76166251]
[1766077649799,0.002,2900.7,2898.6,0.405504]
[1766077649999,0.002,2900.7,2899.1,1.7303]
[1766077650203,0.002,2900.7,2898.5,0.641]
[1766077650204,0.002,2900.7,2899.6,0.9168]
[1766077650623,0.642,2900.7,2899.6,0.9168]
[1766077650930,0.72294596,2900.6,2899.1,0.9168]
[1766077651247,0.08294596,2900.5,2898.6,0.9168]
[1766077651400,0.08294596,2900.3,2899.0,0.9168]
[1766077651746,0.64,2900.2,2899.1,1.7303]
[1766077651941,0.1963946,2900.4,2899.2,0.9168]
[1766077651942,0.64,2900.1,2899.2,0.9168]
[1766077652276,0.08294596,2899.3,2898.0,0.9168]
[1766077652452,0.08294596,2898.4,2897.4,0.9168]
[1766077652739,0.08294596,2898.0,2897.4,0.9168]
[1766077653036,30.0,2897.3,2895.4,1.7303]
[1766077653214,0.08294596,2896.8,2895.6,0.9168]
[1766077653536,0.08294596,2896.2,2895.0,1.7303]
[1766077653742,0.08294596,2896.2,2894.9,0.9168]
[1766077653743,0.08294596,2895.8,2894.9,0.9168]
[1766077654041,10.08294596,2896.2,2895.0,1.76484231]
[1766077654042,10.0,2896.2,2895.0,1.76484231]
[1766077654332,10.0,2896.2,2893.9,0.46438023]
[1766077654333,0.08294596,2895.9,2893.9,0.64]
[1766077654532,0.08294596,2895.9,2894.0,2.6471]
[1766077654533,30.0,2895.9,2894.0,2.6471]
[1766077654720,0.08294596,2896.1,2894.1,0.9168]
[1766077654922,0.08294596,2896.6,2896.1,0.001]
[1766077655132,7.64992824,2897.2,2896.1,0.001]
[1766077655334,0.64,2896.6,2896.1,0.001]
[1766077655534,0.64,2896.6,2894.7,0.64]
[1766077655535,29.657,2896.3,2895.0,0.9168]
[1766077655737,0.64,2896.2,2895.4,0.9168]
[1766077656257,0.08294596,2895.7,2894.9,0.001]
[1766077656559,9.361,2895.0,2893.9,0.9168]
[1766077656948,0.72194596,2894.9,2893.9,0.9168]
[1766077657150,0.08294596,2895.7,2894.3,0.9168]
[1766077657323,0.08294596,2895.5,2894.4,0.9168]
[1766077657531,0.639,2895.8,2894.7,0.9168]
[1766077657754,0.08294596,2895.7,2894.7,0.9168]
[1766077658125,10.08294596,2895.9,2894.7,0.9168]
[1766077658328,0.72194596,2895.8,2894.0,0.46438023]
[1766077658628,0.639,2896.2,2894.2,0.405504]
[1766077658823,0.08294596,2896.8,2894.2,7.97248628]
[1766077659024,0.08294596,2896.8,2894.1,3.45524362]
[1766077659025,10.08294596,2897.5,2895.1,1.7303]
[1766077659246,3.45074872,2898.0,2895.5,0.9168]
[1766077659445,10.0,2898.5,2896.1,0.9168]
[1766077659647,1.639,2898.4,2896.4,1.38118023]
[1766077659847,0.08294596,2897.8,2896.7,0.9168]
[1766077660022,36.9852099,2897.6,2896.0,1.7303]
[1766077660347,0.08294596,2897.5,2896.1,0.9168]
[1766077660546,0.639,2897.4,2896.4,0.9168]
[1766077660854,0.08294596,2897.5,2896.0,1.7303]
[1766077661171,0.638,2897.6,2896.6,0.9168]
[1766077661461,0.08294596,2898.4,2896.6,0.9168]
[1766077661462,0.08294596,2899.2,2897.0,0.9168]
[1766077661661,0.08294596,2899.0,2896.8,0.46438023]
[1766077662147,0.08294596,2899.0,2896.7,7.5423605]
[1766077662148,0.08294596,2899.2,2897.7,1.7303]
[1766077662347,0.72194596,2899.1,2897.8,0.9168]
[1766077662549,0.08294596,2899.0,2897.8,0.9168]
[1766077662861,0.08294596,2898.9,2897.8,0.9168]
[1766077663039,0.638,2898.8,2897.8,0.9168]
[1766077663235,0.08294596,2899.1,2897.8,3.361]
[1766077663448,0.72094596,2899.0,2897.9,0.3612]
[1766077663650,1.881,2899.5,2897.9,0.3612]
[1766077663856,1.72528769,2900.6,2898.3,0.3612]
[1766077663857,0.638,2899.4,2898.3,0.3612]
[1766077664075,0.638,2899.4,2897.4,0.638]
[1766077664076,0.08294596,2899.1,2898.1,0.3612]
[1766077664361,4.03592132,2899.4,2898.1,0.3612]
[1766077664561,3.53145973,2899.8,2898.2,3.361]
[1766077664769,0.08294596,2900.4,2898.7,3.361]
[1766077664929,0.08294596,2899.9,2899.0,0.3612]
[1766077665131,0.638,2899.8,2899.0,0.3612]
[1766077665343,0.638,2900.0,2899.1,0.3612]
[1766077665541,0.002,2900.7,2899.3,0.3612]
[1766077665837,1.1729946,2900.7,2899.5,0.3612]
[1766077666168,1.625,2900.9,2900.0,0.3612]
[1766077666340,3.44650122,2901.5,2900.2,0.3612]
[1766077666546,0.08294596,2901.3,2900.2,0.3612]
[1766077666866,0.637,2901.2,2900.2,0.3612]
[1766077667032,0.08294596,2901.5,2900.2,0.3612]
[1766077667362,0.08294596,2900.8,2899.2,0.3612]
[1766077667568,0.08294596,2900.4,2899.2,0.3612]
[1766077667753,1.09953515,2900.4,2899.2,0.3612]
[1766077667931,0.08294596,2900.7,2899.4,0.3612]
[1766077668133,3.44733593,2900.8,2899.4,0.3612]
[1766077668333,0.08294596,2900.6,2899.5,0.3612]
[1766077668566,0.08294596,2900.5,2899.5,0.3612]
[1766077668753,0.08294596,2900.3,2899.5,0.3612]
[1766077668951,0.08294596,2900.0,2898.9,3.361]
[1766077669167,0.08294596,2899.6,2897.6,0.3612]
[1766077669353,0.08294596,2899.5,2898.1,0.3612]
[1766077669568,0.08294596,2899.5,2898.2,0.3612]
[1766077669569,0.71894596,2899.5,2898.2,0.3612]
[1766077669760,0.71894596,2899.5,2897.4,1.10038023]
[1766077669761,0.636,2899.4,2898.3,0.3612]
[1766077670063,30.0,2900.2,2899.5,0.3612]
[1766077670440,0.635,2900.3,2899.5,0.3612]
[1766077670640,0.635,2900.2,2899.5,0.3612]
[1766077670880,0.08294596,2899.3,2896.8,36.9041701]
[1766077671042,0.08294596,2899.1,2896.9,4.04628111]
[1766077671374,0.08294596,2898.6,2896.9,0.635]
[1766077671573,0.08294596,2898.4,2896.9,0.635]
[1766077671871,0.08294596,2898.4,2895.7,9.12782825]
[1766077671872,0.635,2898.6,2896.3,0.635]
[1766077672073,4.08500674,2898.6,2896.5,3.45236428]
[1766077672254,0.08294596,2898.5,2896.3,4.0876367]
[1766077672580,0.08294596,2898.0,2896.4,0.40876367]
[1766077672885,0.635,2897.9,2896.4,3.7222]
[1766077673041,0.71794596,2897.8,2896.5,0.3612]
[1766077673248,0.08294596,2898.1,2896.5,0.3612]
[1766077673475,0.634,2898.0,2896.5,3.361]
[1766077673646,3.3899,2896.5,2894.5,3.361]
[1766077673846,0.9822846,2896.4,2894.9,0.3622]
[1766077674151,0.635,2896.3,2895.2,0.3612]
[1766077674357,0.08294596,2896.2,2895.2,0.3612]
[1766077674564,3.47284596,2896.5,2895.2,0.3612]
[1766077674758,0.635,2896.3,2895.2,0.3612]
[1766077675277,0.08294596,2896.6,2895.2,0.3612]
[1766077675446,3.3899,2896.9,2895.3,0.3612]
[1766077675643,0.634,2897.1,2895.7,0.3612]
[1766077675850,0.08294596,2897.5,2895.8,0.3612]
[1766077676077,9.88962419,2898.4,2896.4,0.3612]
[1766077676078,4.15169594,2898.4,2896.4,0.3612]
[1766077676378,4.15169594,2898.4,2896.5,3.7222]
[1766077676379,3.3899,2898.4,2896.5,3.7222]
[1766077676576,3.3899,2898.4,2896.4,6.9051046]
[1766077676577,0.08294596,2898.2,2896.8,3.361]
[1766077676776,0.08294596,2898.3,2897.0,0.3612]
[1766077676976,0.08294596,2898.2,2897.0,0.3612]
[1766077677143,0.08294596,2897.8,2897.0,0.3612]
[1766077677348,0.08294596,2898.0,2897.0,0.3612]
[1766077677543,0.08294596,2897.8,2897.0,0.3612]
[1766077677772,0.08294596,2898.0,2897.0,0.3612]
[1766077677950,0.08294596,2897.8,2896.5,0.3612]
[1766077678280,3.89794596,2897.5,2896.5,0.3612]
[1766077678479,0.08294596,2897.3,2896.5,0.3612]
[1766077678684,0.08294596,2897.6,2896.5,0.3612]
[1766077678885,0.46438023,2898.3,2896.5,0.3612]
[1766077679183,0.08294596,2898.2,2896.7,0.3612]
[1766077679373,0.71594596,2898.2,2896.9,0.3612]
[1766077679684,10.08294596,2898.8,2896.9,0.3612]
[1766077679890,0.08294596,2898.8,2897.3,0.3612]
[1766077680182,6.84155597,2898.9,2897.4,0.3612]
[1766077680183,0.632,2898.7,2897.4,0.3612]
[1766077680388,0.002,2898.9,2897.5,3.361]
[1766077680587,0.08294596,2898.6,2897.6,0.3612]